bitfinex-derivatives/quotes_ETHF0:USTF0_20250422
["timestamp","ask_amount","ask_price","bid_price","bid_amount"]
[1745286542390,1.27102283,1585.3,1585.2,10.4562]
[1745286542798,3.32622283,1585.3,1585.2,10.4562]
[1745286545794,3.32622283,1585.3,1585.2,6.322]
[1745286546095,3.32622283,1585.3,1584.4,1.26226]
[1745286546096,3.15411,1585.2,1584.4,1.26226]
[1745286546291,3.15411,1585.2,1584.3,3.2078]
[1745286546292,6.36291,1584.7,1584.3,7.2008]
[1745286546488,3.15501,1584.8,1584.2,20.4541084]
[1745286546489,1.26236,1584.3,1584.2,20.4541084]
[1745286546688,4.47016,1584.3,1584.2,20.4541084]
[1745286547100,4.47016,1584.3,1584.2,26.7761084]
[1745286548404,4.47016,1584.3,1584.2,6.322]
[1745286548700,6.40786,1584.3,1584.2,6.322]
[1745286549501,5.1455,1584.3,1584.2,6.322]
[1745286549802,3.20006,1584.3,1584.2,8.344]
[1745286550700,1.9377,1584.3,1584.2,8.344]
[1745286550906,3.20006,1584.3,1584.2,8.344]
[1745286551503,1.27179283,1584.4,1584.2,8.344]
[1745286551700,1.27179283,1584.4,1584.3,1.9993]
[1745286552006,3.22659283,1584.4,1584.3,4.0213]
[1745286553500,0.00946283,1584.4,1584.3,5.28366]
[1745286553897,1.27174283,1584.4,1584.3,4.0213]
[1745286554508,0.00946283,1584.4,1584.3,4.0213]
[1745286554908,0.00946283,1584.4,1584.3,5.28366]
[1745286555505,1.27174283,1584.4,1584.3,4.0213]
[1745286555708,1.27174283,1584.4,1584.3,1.9993]
[1745286555914,1.27174283,1584.4,1584.2,6.322]
[1745286555915,1.26236,1584.3,1584.2,6.322]
[1745286556214,4.47016,1584.3,1584.2,6.322]
[1745286556705,1.26236,1584.3,1584.2,8.1825]
[1745286557211,3.24176,1584.3,1584.2,8.1825]
[1745286557611,3.24176,1584.3,1584.2,6.322]
[1745286558316,6.44956,1584.3,1584.2,6.322]
[1745286558617,5.1872,1584.3,1584.2,6.322]
[1745286558922,5.11446283,1584.4,1584.2,9.55214]
[1745286559215,0.00946283,1584.4,1584.3,1.9677]
[1745286559410,0.00946283,1584.4,1584.3,3.23006]
[1745286560007,0.00946283,1584.4,1584.3,1.9677]
[1745286560316,0.00946283,1584.4,1584.3,3.23006]
[1745286560721,0.00946283,1584.4,1584.3,1.9677]
[1745286560909,0.00946283,1584.4,1584.3,3.23006]
[1745286561109,0.00946283,1584.4,1584.3,1.9677]
[1745286561310,0.00946283,1584.4,1584.3,3.23006]
[1745286562215,1.27174283,1584.4,1584.3,42.7677]
[1745286563320,0.00946283,1584.4,1584.3,44.03006]
[1745286567211,3.2078,1584.7,1584.6,1.26212]
[1745286568320,3.2078,1584.7,1584.6,3.13052]
[1745286568515,0.00946283,1584.8,1584.7,1.26204]
[1745286569116,0.00946283,1584.8,1584.7,7.58404]
[1745286570422,5.105,1585.1,1584.7,15.79184]
[1745286570628,5.1457,1585.2,1584.8,3.8337]
[1745286570829,3.11956,1585.1,1584.9,3.9886]
[1745286571016,3.11956,1585.1,1585.0,3.2544]
[1745286571221,3.11956,1585.1,1585.0,44.0544]
[1745286571618,1.8578,1585.1,1585.0,44.0544]
[1745286571818,4.47873855,1585.2,1585.0,44.0544]
[1745286572019,6.33653855,1585.2,1585.1,1.9926]
[1745286572529,5.07483855,1585.2,1585.1,1.9926]
[1745286572731,5.07483855,1585.2,1585.1,3.25432]
[1745286573232,1.86703855,1585.2,1585.1,3.25432]
[1745286573432,0.00923855,1585.2,1585.1,3.25432]
[1745286575833,3.2078,1585.4,1585.3,1.26156]
[1745286576426,3.2078,1585.4,1585.3,5.22026]
[1745286576832,6.36093,1585.7,1585.3,7.1665]
[1745286577133,1.26148,1585.4,1585.3,8.42806]
[1745286577626,3.22887,1585.5,1585.3,49.22806]
[1745286577831,1.26148,1585.4,1585.3,47.9665]
[1745286578033,3.22888,1585.4,1585.3,47.9665]
[1745286578528,1.26156,1585.3,1585.2,6.322]
[1745286578733,3.22896,1585.3,1585.2,6.322]
[1745286579134,1.26164,1585.2,1585.1,1.8806]
[1745286579331,3.22904,1585.2,1585.1,1.8806]
[1745286579830,1.9674,1585.2,1585.1,1.8806]
[1745286580931,1.9674,1585.2,1585.0,6.322]
[1745286581121,1.26172,1585.1,1585.0,8.3105]
[1745286581526,3.2291,1585.2,1585.0,8.3105]
[1745286582030,1.8098,1585.1,1585.0,8.3105]
[1745286582226,1.8098,1585.1,1585.0,1.9885]
[1745286582423,3.07152,1585.1,1585.0,1.9885]
[1745286582630,3.07152,1585.1,1584.9,47.76406283]
[1745286582835,1.8098,1585.0,1584.9,47.76406283]
[1745286583023,1.8098,1585.0,1584.9,49.57876283]
[1745286583227,1.8098,1585.0,1584.9,57.16264283]
[1745286584937,3.0716,1585.0,1584.9,57.16264283]
[1745286585139,3.0716,1585.0,1584.9,55.90076283]
[1745286586038,3.0716,1585.0,1584.9,57.16264283]
[1745286586437,3.0716,1585.0,1584.9,55.90076283]
[1745286586737,3.0716,1585.0,1584.9,57.16264283]
[1745286587040,1.8098,1585.0,1584.9,57.16264283]
[1745286587337,1.26178,1585.1,1584.9,57.16264283]
[1745286587536,1.26178,1585.1,1585.0,1.8482]
[1745286587745,1.2618,1585.0,1584.9,54.08606283]
[1745286588031,1.2618,1585.0,1584.9,6.33146283]
[1745286588736,3.2362,1585.0,1584.9,6.33146283]
[1745286588932,3.2362,1585.0,1584.9,7.59334283]
[1745286589130,4.46959,1585.1,1584.9,11.31354283]
[1745286589334,3.2078,1585.1,1585.0,1.2618]
[1745286589540,3.2078,1585.1,1585.0,5.0034]
[1745286589840,1.26158,1585.3,1585.1,1.26165]
[1745286590038,1.26164,1585.2,1585.1,3.10555]
[1745286590337,1.26164,1585.3,1585.1,3.10555]
[1745286590537,1.26164,1585.3,1585.2,1.8439]
[1745286591131,1.26164,1585.3,1585.2,8.1659]
[1745286591736,1.26164,1585.3,1585.2,6.322]
[1745286593235,1.26171,1585.2,1585.0,12.68928]
[1745286593435,1.26171,1585.2,1585.0,14.51048]
[1745286593937,1.2617,1585.2,1585.0,10.79158]
[1745286594240,1.2617,1585.2,1585.0,12.61278]
[1745286594442,3.15377,1585.4,1585.0,11.351]
[1745286594640,1.26172,1585.1,1585.0,11.351]
[1745286594840,1.26172,1585.1,1585.0,12.6128]
[1745286595139,1.26168,1585.2,1585.0,12.28271423]
[1745286595640,1.26162,1585.3,1585.1,1.26172]
[1745286595838,1.26162,1585.3,1585.1,3.18772]
[1745286596040,1.26164,1585.2,1585.1,3.18772]
[1745286596343,11.99841,1585.5,1585.1,1.926]
[1745286596344,8.8449,1585.5,1585.1,1.926]
[1745286596537,1.26152,1585.4,1585.2,3.18759]
[1745286597242,1.26152,1585.4,1585.2,9.50959]
[1745286597444,1.26156,1585.3,1585.2,8.248]
[1745286597843,1.26156,1585.3,1585.2,6.322]
[1745286599346,1.26164,1585.2,1585.1,1.9936]
[1745286599545,1.26162,1585.3,1585.1,3.25532]
[1745286599844,1.26162,1585.3,1585.2,1.884]
[1745286600240,1.26162,1585.3,1585.2,8.206]
[1745286600845,1.26162,1585.3,1585.2,6.322]
[1745286601237,1.26164,1585.2,1585.1,1.9936]
[1745286602146,1.26164,1585.2,1585.1,3.9824]
[1745286602945,1.26172,1585.1,1585.0,9.19971423]
[1745286603133,1.26172,1585.1,1585.0,6.322]
[1745286603439,1.26172,1585.1,1584.9,0.00946283]
[1745286603440,1.2618,1585.0,1584.9,0.00946283]
[1745286603648,1.26212,1584.6,1584.5,3.7107]
[1745286604241,1.26212,1584.6,1584.5,10.0327]
[1745286604443,1.26212,1584.6,1584.5,11.7386]
[1745286607848,2.98632,1584.6,1584.5,11.7386]
[1745286608150,0.00946283,1584.7,1584.5,11.7386]
[1745286608343,0.00946283,1584.7,1584.6,3.01682]
[1745286608842,1.27150283,1584.7,1584.6,1.7547]
[1745286609239,0.00946283,1584.7,1584.6,3.01682]
[1745286609648,0.00946283,1584.7,1584.6,1.7547]
[1745286609649,1.27150283,1584.7,1584.6,1.7547]
[1745286609840,0.00946283,1584.7,1584.6,3.01682]
[1745286611949,1.27150283,1584.7,1584.6,1.7547]
[1745286612344,1.27150283,1584.7,1584.6,3.01682]
[1745286612544,1.27150283,1584.7,1584.6,1.7547]
[1745286615248,0.00946283,1584.7,1584.6,3.01682]
[1745286615643,1.27150283,1584.7,1584.6,1.7547]
[1745286616245,0.00946283,1584.7,1584.6,3.01682]
[1745286617348,1.27150283,1584.7,1584.6,1.7547]
[1745286617744,0.00946283,1584.7,1584.6,1.7547]
[1745286617945,0.00946283,1584.7,1584.6,3.01682]
[1745286618848,1.27150283,1584.7,1584.6,3.01682]
[1745286619054,0.00946283,1584.7,1584.6,3.01682]
[1745286619748,0.00946283,1584.7,1584.6,43.81682]
[1745286619951,0.00946283,1584.7,1584.6,48.81682]
[1745286621955,0.00946283,1584.7,1584.6,43.81682]
[1745286624849,6.34178,1585.1,1584.7,3.155]
[1745286625056,1.26178,1585.1,1585.0,1.2618]
[1745286625552,1.26178,1585.1,1585.0,42.0618]
[1745286626257,3.07836,1585.2,1585.1,1.26172]
[1745286626462,3.07836,1585.2,1585.1,1.764]
[1745286627458,1.26172,1585.1,1585.0,40.8]
[1745286627757,3.06852,1585.1,1584.9,3.02585]
[1745286628052,3.06852,1585.1,1584.9,43.82582]
[1745286628247,1.8068,1585.0,1584.9,50.14782]
[1745286628761,1.8068,1585.0,1584.9,51.82492]
[1745286629455,6.16562,1585.4,1585.0,3.15451]
[1745286629759,1.8408,1585.3,1585.2,1.26164]
[1745286630054,4.4691,1585.7,1585.5,1.26134]
[1745286630260,1.8408,1585.6,1585.5,1.26134]
[1745286630651,1.8408,1585.6,1585.5,2.93844]
[1745286631159,1.8408,1585.6,1585.5,9.26044]
[1745286631853,1.8408,1585.6,1585.5,7.9991]
[1745286632159,3.10212,1585.6,1585.5,7.9991]
[1745286633052,1.8408,1585.6,1585.5,7.9991]
[1745286633247,1.26122,1585.8,1585.6,1.26127]
[1745286633455,1.75526145,1585.8,1585.7,1.26124]
[1745286633652,3.01642145,1585.8,1585.7,2.98444]
[1745286633860,3.01642145,1585.8,1585.7,1.7232]
[1745286636460,1.26126,1585.7,1585.5,1.26133]
[1745286636756,3.08056,1585.7,1585.5,4.71199145]
[1745286636952,1.8193,1585.7,1585.6,1.26132]
[1745286637153,1.8193,1585.7,1585.6,1.7474]
[1745286637154,3.08054,1585.7,1585.6,1.7474]
[1745286637354,1.8193,1585.7,1585.6,3.00872]
[1745286637554,3.08054,1585.7,1585.6,1.7474]
[1745286637755,1.26124,1585.7,1585.6,1.7474]
[1745286637954,1.26132,1585.6,1585.5,8.0345]
[1745286638359,1.26132,1585.6,1585.5,9.2959]
[1745286638754,1.26132,1585.6,1585.5,8.0345]
[1745286639758,1.26132,1585.6,1585.5,11.0997]
[1745286639955,1.2613,1585.7,1585.6,1.2613]
[1745286640162,1.26122,1585.8,1585.7,1.26124]
[1745286640361,1.25198145,1585.8,1585.7,3.06504]
[1745286640662,1.25198145,1585.8,1585.7,1.8038]
[1745286641965,1.25198145,1585.8,1585.7,3.06504]
[1745286642153,1.25198145,1585.8,1585.7,1.8038]
[1745286642357,1.25198145,1585.8,1585.7,3.06504]
[1745286642554,1.25198145,1585.8,1585.7,1.8038]
[1745286644061,1.25198145,1585.8,1585.6,4.46907]
[1745286644267,1.26124,1585.7,1585.6,4.46907]
[1745286644468,1.26124,1585.7,1585.6,4.45988145]
[1745286644761,9.82882,1586.0,1585.6,4.45988145]
[1745286644967,1.25198145,1585.8,1585.6,4.45984145]
[1745286645268,1.26124,1585.7,1585.6,1.26128]
[1745286645470,6.6763,1586.0,1585.7,1.26124]
[1745286645767,1.26124,1585.7,1585.6,3.2078]
[1745286645958,1.26124,1585.7,1585.6,1.26132]
[1745286646158,1.26124,1585.7,1585.5,4.67034]
[1745286646361,9.82884,1586.0,1585.5,3.409]
[1745286646556,1.26122,1585.8,1585.6,1.26129]
[1745286646764,1.26114,1585.9,1585.7,1.26124]
[1745286646962,1.26116,1585.8,1585.7,1.8086]
[1745286649272,3.03321,1585.9,1585.7,3.06976]
[1745286649570,1.7721,1585.9,1585.8,1.26116]
[1745286649876,3.03318,1585.9,1585.8,4.74796]
[1745286650469,3.03318,1585.9,1585.8,1.6782]
[1745286650670,1.26116,1585.8,1585.7,6.322]
[1745286650874,3.07356,1585.8,1585.7,6.322]
[1745286651763,1.8124,1585.8,1585.7,6.322]
[1745286652068,1.8124,1585.8,1585.7,7.58324]
[1745286652266,1.8124,1585.8,1585.7,1.26124]
[1745286652670,1.8124,1585.8,1585.7,3.04734]
[1745286652871,3.15156,1586.5,1586.1,1.26092]
[1745286653069,1.26082,1586.3,1586.2,1.551]
[1745286653566,1.7321,1586.4,1586.3,1.26077]
[1745286653766,2.99281,1586.4,1586.3,1.5967]
[1745286653965,9.9466,1586.7,1586.4,1.26067]
[1745286654166,1.26069,1586.4,1586.3,7.90536]
[1745286654369,1.26069,1586.4,1586.3,6.63536145]
[1745286654764,1.26069,1586.4,1586.3,7.89613145]
[1745286655472,1.26069,1586.4,1586.3,6.63536145]
[1745286657270,1.26069,1586.4,1586.3,3.2078]
[1745286658375,1.7074,1586.5,1586.3,3.2078]
[1745286658572,1.26069,1586.4,1586.3,3.2078]
[1745286659271,1.7074,1586.5,1586.3,3.2078]
[1745286659272,2.96807,1586.5,1586.3,4.46857]
[1745286659468,1.26069,1586.4,1586.3,6.5913]
[1745286659669,1.715,1586.4,1586.3,7.85207]
[1745286660178,2.97569,1586.4,1586.3,6.5913]
[1745286661071,2.97569,1586.4,1586.3,4.814]
[1745286661273,2.97569,1586.4,1586.3,3.2078]
[1745286661473,1.26092,1586.1,1586.0,4.814]
[1745286661773,1.26092,1586.1,1586.0,6.075]
[1745286661972,1.715,1586.2,1586.1,1.26092]
[1745286662167,1.715,1586.2,1586.1,2.98312]
[1745286662374,1.26075,1586.4,1586.1,1.7222]
[1745286662566,1.8425,1586.4,1586.3,1.26077]
[1745286662768,0.00946283,1586.5,1586.2,9.68851]
[1745286663076,0.00946283,1586.5,1586.4,4.46849]
[1745286663275,1.27007283,1586.5,1586.4,4.46849]
[1745286663577,1.27007283,1586.5,1586.4,6.19069]
[1745286663781,0.00946283,1586.5,1586.4,6.19069]
[1745286664079,1.27007283,1586.5,1586.4,4.93]
[1745286664979,0.00946283,1586.5,1586.4,6.19069]
[1745286665174,0.00946283,1586.5,1586.4,12.51269]
[1745286666779,0.00946283,1586.5,1586.4,17.51269]
[1745286667274,0.00946283,1586.5,1586.4,53.31269]
[1745286668483,1.27007283,1586.5,1586.4,52.052]
[1745286668674,6.27007283,1586.5,1586.4,6.322]
[1745286668979,0.00946283,1586.5,1586.4,6.322]
[1745286669176,1.27007283,1586.5,1586.4,40.8]
[1745286669376,1.27007283,1586.5,1586.4,42.6454]
[1745286669578,1.27007283,1586.5,1586.4,47.11389]
[1745286669770,0.00946283,1586.5,1586.4,47.11389]
[1745286670168,1.26034,1586.9,1586.4,58.43589]
[1745286670384,3.10830145,1586.9,1586.7,1.26043]
[1745286670674,3.10830145,1586.9,1586.8,1.566]
[1745286672276,1.8572,1586.9,1586.6,4.7451]
[1745286672476,1.6945,1586.8,1586.6,4.7451]
[1745286672675,1.6945,1586.8,1586.6,6.5893]
[1745286672877,1.26045,1586.7,1586.6,6.5893]
[1745286673507,1.26045,1586.7,1586.6,7.84983]
[1745286673782,2.95492,1586.8,1586.6,7.84983]
[1745286673974,1.6945,1586.8,1586.6,6.5893]
[1745286674175,2.95488,1586.8,1586.7,1.8442]
[1745286674783,2.95488,1586.8,1586.7,3.10465]
[1745286674976,1.26037,1586.8,1586.7,1.8442]
[1745286675278,1.26037,1586.8,1586.7,8.1662]
[1745286675879,1.26037,1586.8,1586.7,9.42665]
[1745286676078,1.26037,1586.8,1586.7,3.10465]
[1745286676680,1.8098,1586.9,1586.7,3.10465]
[1745286676681,1.8098,1586.9,1586.8,1.26037]
[1745286676983,1.8098,1586.9,1586.8,4.63067]
[1745286676984,3.07009,1586.9,1586.8,4.63067]
[1745286677181,1.26029,1586.9,1586.8,4.63067]
[1745286677382,3.03357,1587.0,1586.8,4.63067]
[1745286677585,3.03357,1587.0,1586.9,3.2829]
[1745286677981,3.03357,1587.0,1586.9,1.5408]
[1745286678883,3.03351,1587.0,1586.9,1.5408]
[1745286679187,4.46795,1587.1,1586.9,3.2829]
[1745286679486,1.26021,1587.0,1586.9,3.2829]
[1745286679887,3.03351,1587.0,1586.9,3.2829]
[1745286680189,3.03351,1587.0,1586.9,1.5408]
[1745286682288,1.26018,1587.1,1586.9,2.80106]
[1745286682583,3.02408,1587.1,1587.0,1.8514]
[1745286683287,1.26018,1587.1,1587.0,1.8514]
[1745286684290,1.26021,1587.0,1586.9,1.5408]
[1745286684993,1.26029,1586.9,1586.8,1.58116283]
[1745286685179,3.01929,1586.9,1586.8,1.58116283]
[1745286687091,3.01929,1586.9,1586.8,0.00946283]
[1745286687985,4.66339,1586.9,1586.8,0.00946283]
[1745286689891,1.26025,1587.0,1586.8,1.26983283]
[1745286690082,2.97545,1587.0,1586.9,3.1945]
[1745286690288,2.97545,1587.0,1586.9,4.8874]
[1745286690897,2.97541,1587.0,1586.9,6.14769]
[1745286691086,2.97541,1587.0,1586.9,12.46969]
[1745286691592,2.97541,1587.0,1586.9,11.2094]
[1745286692088,1.26021,1587.0,1586.9,11.2094]
[1745286692284,1.26021,1587.0,1586.9,4.8874]
[1745286692796,1.26021,1587.0,1586.9,3.1945]
[1745286693996,3.08291,1587.0,1586.9,3.1945]
[1745286696890,1.26029,1586.9,1586.8,0.00946283]
[1745286697192,2.93859,1586.9,1586.8,0.00946283]
[1745286697495,6.14639,1586.9,1586.8,0.00946283]
[1745286701196,6.14639,1586.9,1586.8,1.56816283]
[1745286701999,2.93859,1586.9,1586.8,1.56816283]
[1745286702197,2.93859,1586.9,1586.8,3.14366283]
[1745286702397,2.93859,1586.9,1586.8,4.92676283]
[1745286702901,3.2078,1587.5,1586.8,13.13456283]
[1745286703107,1.7822,1587.5,1587.3,1.25991]
[1745286703397,1.7822,1587.5,1587.4,2.85359]
[1745286704095,1.7822,1587.5,1587.4,10.95869]
[1745286705189,1.7822,1587.5,1587.4,45.43669]
[1745286707904,3.04201,1587.5,1587.4,44.1768]
[1745286708098,3.04201,1587.5,1587.4,40.8]
[1745286708305,8.04201,1587.5,1587.4,40.8]
[1745286708697,3.04201,1587.5,1587.4,40.8]
[1745286709002,1.25991,1587.4,1587.2,6.05112]
[1745286709196,3.10921,1587.4,1587.2,6.05112]
[1745286709394,3.10921,1587.4,1587.3,40.8]
[1745286709599,3.10921,1587.4,1587.2,6.05112]
[1745286710002,3.10921,1587.4,1587.2,46.85112]
[1745286710302,3.10921,1587.4,1587.3,3.3325]
[1745286711203,3.10921,1587.4,1587.3,1.52]
[1745286711400,3.10921,1587.4,1587.2,46.85115]
[1745286711601,3.07227,1587.3,1587.2,44.0078]
[1745286711803,1.26007,1587.2,1587.0,9.22826]
[1745286712101,1.8123,1587.2,1587.1,1.26013]
[1745286712303,1.26,1587.3,1587.1,43.86833]
[1745286712490,1.26005,1587.2,1587.1,42.6082]
[1745286712695,1.26005,1587.2,1587.1,1.8082]
[1745286713103,1.26005,1587.2,1587.1,42.6082]
[1745286713309,1.26005,1587.2,1587.1,40.8]
[1745286714703,1.8123,1587.3,1587.0,6.1599]
[1745286714704,1.26013,1587.1,1587.0,6.1599]
[1745286715002,1.26013,1587.1,1587.0,7.897]
[1745286715900,1.26013,1587.1,1587.0,48.697]
[1745286717305,1.26013,1587.1,1587.0,7.897]
[1745286717903,1.26013,1587.1,1587.0,4.6892]
[1745286718103,1.26013,1587.1,1587.0,2.9521]
[1745286718307,1.26029,1586.9,1586.8,45.79256283]
[1745286718610,1.26029,1586.9,1586.8,44.09256283]
[1745286719507,3.11309,1586.9,1586.8,3.29256283]
[1745286719700,3.11309,1586.9,1586.8,4.55293283]
[1745286719902,1.26029,1586.9,1586.8,3.29256283]
[1745286720208,1.26022,1587.0,1586.8,6.50036283]
[1745286720410,1.26022,1587.0,1586.9,1.7077]
[1745286720600,3.03202,1587.0,1586.9,1.7077]
[1745286721109,1.26029,1586.9,1586.8,4.72506283]
[1745286721303,3.03209,1586.9,1586.8,4.72506283]
[1745286722105,1.26027,1587.0,1586.8,7.69313283]
[1745286722306,1.26027,1587.0,1586.9,1.7077]
[1745286723003,3.2078,1587.2,1586.9,1.7077]
[1745286723195,3.2078,1587.2,1587.1,1.26013]
[1745286723597,3.00242,1587.4,1587.1,47.0442]
[1745286723802,1.25997,1587.3,1587.1,47.0442]
[1745286724010,1.25997,1587.3,1587.2,1.7723]
[1745286724811,3.00245,1587.4,1587.2,3.03235]
[1745286725310,1.25997,1587.3,1587.1,46.53197]
[1745286725512,3.00245,1587.4,1587.2,1.26005]
[1745286726611,1.25997,1587.3,1587.1,46.53196]
[1745286726806,1.26005,1587.2,1587.1,45.2719]
[1745286727613,2.97492,1587.3,1587.1,45.2719]
[1745286727812,2.97492,1587.3,1587.1,46.53202]
[1745286728708,2.97492,1587.3,1587.2,1.26005]
[1745286729015,1.25996,1587.4,1587.2,1.26005]
[1745286729313,9.97251,1587.5,1587.1,46.53197]
[1745286729515,5.021,1587.5,1587.1,45.2719]
[1745286729707,1.25993,1587.4,1587.3,1.25997]
[1745286729907,1.25993,1587.4,1587.2,1.26001]
[1745286730106,1.25993,1587.4,1587.3,1.25997]
[1745286730304,3.06177,1587.5,1587.3,1.25997]
[1745286730508,3.06177,1587.5,1587.1,45.2719]
[1745286730509,3.06177,1587.5,1587.4,1.2121]
[1745286734508,1.8019,1587.5,1587.1,44.0078]
[1745286734813,3.2078,1587.6,1587.1,44.0078]
[1745286735009,3.01261,1587.5,1587.3,1.25997]
[1745286735209,1.25989,1587.4,1587.3,1.25997]
[1745286735406,3.01268,1587.5,1587.3,1.25997]
[1745286735708,3.01268,1587.5,1587.2,3.2078]
[1745286735709,1.7528,1587.5,1587.2,3.2078]
[1745286735916,3.01264,1587.5,1587.3,2.43491]
[1745286736213,1.25989,1587.4,1587.3,2.43491]
[1745286736408,3.01263,1587.5,1587.3,2.43493]
[1745286736603,1.25989,1587.4,1587.3,1.175]
[1745286736816,2.93529,1587.4,1587.3,1.175]
[1745286737316,2.93529,1587.4,1587.1,42.06008]
[1745286737317,1.25997,1587.3,1587.1,1.2601]
[1745286737616,2.93537,1587.3,1587.2,1.175]
[1745286737814,2.93537,1587.3,1587.2,41.975]
[1745286739215,1.25995,1587.4,1587.2,43.23505]
[1745286739411,3.05585,1587.4,1587.3,1.7877]
[1745286739612,3.05585,1587.4,1587.3,3.0736]
[1745286739811,1.25997,1587.3,1587.2,1.175]
[1745286740007,3.05587,1587.3,1587.2,1.175]
[1745286740910,1.26013,1587.1,1587.0,43.34611]
[1745286741111,3.056,1587.2,1587.1,1.26013]
[1745286741409,3.056,1587.2,1587.1,1.7001]
[1745286742115,3.056,1587.2,1587.1,2.96023]
[1745286742318,3.056,1587.2,1587.1,2.9907]
[1745286745112,3.056,1587.2,1587.1,1.2906]
[1745286745612,1.26013,1587.1,1587.0,42.0859]
[1745286745822,3.04653,1587.1,1587.0,44.55151]
[1745286746018,3.04653,1587.1,1587.0,45.0182]
[1745286746325,1.26029,1586.9,1586.8,0.00946283]
[1745286746517,4.46809,1586.9,1586.8,1.21486283]
[1745286746720,4.46809,1586.9,1586.8,0.00946283]
[1745286746721,9.48909,1586.9,1586.8,0.00946283]
[1745286747113,11.27549,1586.9,1586.8,0.00946283]
[1745286747821,21.73549,1586.9,1586.8,0.00946283]
[1745286748222,21.84451501,1586.9,1586.8,0.00946283]
[1745286749220,26.84451501,1586.9,1586.8,0.00946283]
[1745286749419,1.26061,1586.5,1586.4,43.2238]
[1745286749619,1.26061,1586.5,1586.4,43.21456145]
[1745286750324,3.10391,1586.5,1586.4,43.21456145]
[1745286750522,1.26069,1586.4,1586.3,0.00946283]
[1745286750722,3.07919,1586.4,1586.3,0.00946283]
[1745286753922,0.00946283,1586.6,1586.3,0.00946283]
[1745286754131,1.26069,1586.4,1586.3,5.05666283]
[1745286754322,1.26064,1586.5,1586.3,6.31741283]
[1745286754520,1.26064,1586.5,1586.4,1.2662]
[1745286755221,1.26064,1586.5,1586.4,9.4276]
[1745286755526,1.26064,1586.5,1586.4,7.5882]
[1745286755727,3.01505283,1586.6,1586.4,7.5882]
[1745286755930,1.26061,1586.5,1586.4,9.4276]
[1745286756118,1.26061,1586.5,1586.4,3.09636145]
[1745286756827,3.00581428,1586.6,1586.4,4.35705145]
[1745286757126,2.99657573,1586.6,1586.4,3.09636145]
[1745286757426,2.99657573,1586.6,1586.5,1.7498]
[1745286759128,6.2705,1586.7,1586.5,3.01039]
[1745286759330,1.2605,1586.7,1586.5,9.33239]
[1745286759622,1.2605,1586.7,1586.6,1.6806]
[1745286759825,1.26053,1586.6,1586.5,6.322]
[1745286760025,1.26053,1586.6,1586.5,8.0026]
[1745286760225,2.9571,1586.7,1586.5,8.0026]
[1745286760526,1.26053,1586.6,1586.5,8.0026]
[1745286760728,2.9571,1586.7,1586.5,9.2632]
[1745286761027,2.9571,1586.7,1586.6,1.6806]
[1745286761928,1.26061,1586.5,1586.4,1.25696145]
[1745286762128,1.26061,1586.5,1586.4,9.2503229]
[1745286763431,1.26061,1586.5,1586.4,2.9283229]
[1745286764031,1.26061,1586.5,1586.4,4.1890129]
[1745286764530,1.26061,1586.5,1586.4,2.9283229]
[1745286765131,1.26061,1586.5,1586.4,9.2503229]
[1745286765625,1.26061,1586.5,1586.4,7.5697229]
[1745286765933,1.26061,1586.5,1586.4,6.322]
[1745286765934,9.47841,1586.5,1586.4,6.322]
[1745286766130,1.26069,1586.4,1586.3,0.00946283]
[1745286766330,3.02759,1586.4,1586.3,0.00946283]
[1745286770623,4.46847,1586.5,1586.3,3.03103283]
[1745286770824,6.22637,1586.5,1586.4,2.7117]
[1745286771225,3.01857,1586.5,1586.4,9.0337]
[1745286772238,3.01857,1586.5,1586.4,0.9509]
[1745286772735,3.01857,1586.5,1586.4,2.6475]
[1745286774036,1.26067,1586.5,1586.4,2.6475]
[1745286774238,1.26067,1586.5,1586.4,8.9695]
[1745286776139,1.26055,1586.6,1586.4,10.23014]
[1745286776437,1.25131145,1586.6,1586.5,2.6655]
[1745286777739,0.49693542,1587.0,1586.5,2.6655]
[1745286777740,6.46722709,1587.5,1586.8,3.15093]
[1745286777943,1.26009,1587.2,1587.0,1.26018]
[1745286778233,0.21798001,1587.4,1587.1,42.5931]
[1745286778438,0.21798001,1587.4,1587.2,1.7931]
[1745286778439,0.10899222,1587.4,1587.2,1.7931]
[1745286778627,0.10899222,1587.4,1587.3,4.46777]
[1745286778830,0.10899222,1587.4,1587.3,5.38267]
[1745286779030,0.10899222,1587.4,1587.3,4.1227]
[1745286779241,0.10899222,1587.4,1587.3,5.38267]
[1745286779538,0.10899222,1587.4,1587.3,7.17577]
[1745286780535,0.10899222,1587.4,1587.3,5.9158]
[1745286780734,1.36888222,1587.4,1587.3,5.9158]
[1745286785747,0.10899222,1587.4,1587.3,7.17577]
[1745286786158,6.25759,1587.8,1587.6,1.25973]
[1745286786359,6.25759,1587.8,1587.7,1.8255]
[1745286786546,1.25959,1587.8,1587.7,1.8255]
[1745286787350,1.25959,1587.8,1587.7,0.9351]
[1745286788247,1.25973,1587.6,1587.5,3.2078]
[1745286788650,1.25981,1587.5,1587.4,3.5449]
[1745286788846,1.25989,1587.4,1587.3,1.83559]
[1745286789052,1.25989,1587.4,1587.1,0.00946283]
[1745286789053,1.26053,1586.6,1586.5,0.922]
[1745286789356,1.26061,1586.5,1586.4,41.705]
[1745286789557,3.00941,1586.5,1586.4,0.89576145]
[1745286789955,3.00941,1586.5,1586.4,49.85452817]
[1745286790465,3.00941,1586.5,1586.4,51.66402817]
[1745286790863,1.27003283,1586.6,1586.4,51.66402817]
[1745286791064,1.26079428,1586.6,1586.4,51.66402817]
[1745286791264,1.26079428,1586.6,1586.4,57.98602817]